bitfinex/quotes_SOLUSD_20220128
["timestamp","ask_amount","ask_price","bid_price","bid_amount"]
[1643386628499,23.723,91.532,91.47,13.58]
[1643386628700,16.411,91.52,91.47,13.58]
[1643386628899,54.703,91.54,91.47,13.58]
[1643386629299,0.25,91.533,91.47,13.58]
[1643386629600,43.12633964,91.533,91.47,13.58]
[1643386629799,43.12633964,91.533,91.471,0.25]
[1643386630802,0.25,91.532,91.471,0.25]
[1643386631501,43.12633964,91.533,91.471,0.25]
[1643386631702,3.04653241,91.592,91.472,2.2159788]
[1643386631901,3.04653241,91.615,91.48,6.0]
[1643386632100,10.48312,91.613,91.49,13.58]
[1643386632307,10.48312,91.613,91.5,13.58]
[1643386632501,10.48312,91.613,91.51,13.58]
[1643386632703,10.48312,91.613,91.52,13.58]
[1643386632704,109.9,91.611,91.52,13.58]
[1643386632908,39.53257352,91.589,91.52,13.58]
[1643386633305,6.0,91.579,91.52,13.58]
[1643386633603,6.0,91.579,91.51,13.58]
[1643386633804,16.403,91.57,91.48,13.58]
[1643386634004,6.0,91.56,91.48,13.58]
[1643386634503,6.25,91.559,91.48,13.58]
[1643386635104,41.59211537,91.539,91.48,13.58]
[1643386635307,0.25,91.538,91.48,13.58]
[1643386636107,16.409,91.53,91.48,13.58]
[1643386636310,0.25,91.529,91.48,13.58]
[1643386636908,16.409,91.53,91.48,13.58]
[1643386638213,41.59211537,91.539,91.499,0.31769641]
[1643386638515,41.59211537,91.539,91.49,13.58]
[1643386638912,41.59211537,91.539,91.491,0.25]
[1643386642116,41.59211537,91.539,91.491,2.4659788]
[1643386642516,41.59211537,91.539,91.491,0.25]
[1643386643316,0.25,91.538,91.491,0.25]
[1643386651525,16.405,91.55,91.491,0.25]
[1643386651729,16.402,91.57,91.503,0.30427001]
[1643386651928,3.04653241,91.591,91.527,0.32252711]
[1643386652127,3.04653241,91.624,91.53,13.58]
[1643386652328,72.5368,91.66,91.53,13.58]
[1643386652329,3.04653241,91.643,91.551,0.30637188]
[1643386652527,3.04653241,91.649,91.56,13.58]
[1643386652728,43.0196654,91.627,91.56,13.58]
[1643386652932,3.04653241,91.649,91.56,13.58]
[1643386652933,72.5368,91.66,91.57,6.0]
[1643386653129,72.5368,91.66,91.58,13.58]
[1643386653329,72.5368,91.66,91.581,0.25]
[1643386653530,72.5368,91.66,91.59,6.0]
[1643386653730,72.5368,91.66,91.6,13.58]
[1643386654034,40.44277926,91.649,91.61,6.0]
[1643386654230,40.44277926,91.649,91.61,13.58]
[1643386654430,40.44277926,91.649,91.581,0.25]
[1643386654431,40.44277926,91.649,91.6,13.58]
[1643386655030,40.44277926,91.649,91.53,169.7]
[1643386655031,0.25,91.648,91.58,13.58]
[1643386655433,0.25,91.648,91.581,0.25]
[1643386656233,16.389,91.64,91.58,13.58]
[1643386656634,0.25,91.639,91.58,13.58]
[1643386658035,16.391,91.63,91.58,13.58]
[1643386658436,0.25,91.629,91.58,13.58]
[1643386658640,0.25,91.629,91.531,2.21216504]
[1643386658938,41.34116051,91.619,91.54,13.58]
[1643386659139,16.396,91.6,91.54,13.58]
[1643386659639,45.61141162,91.589,91.54,13.58]
[1643386661561,45.61141162,91.589,91.54,9.59]
[1643386661962,16.396,91.6,91.54,9.59]
[1643386662163,3.01833847,91.633,91.54,9.59]
[1643386662164,3.01833847,91.633,91.541,2.45623492]
[1643386662361,3.01833847,91.647,91.55,6.0]
[1643386662566,10.48312,91.646,91.56,13.58]
[1643386662860,10.48312,91.646,91.57,13.58]
[1643386663063,10.48312,91.646,91.58,19.58]
[1643386663259,10.48312,91.646,91.59,13.58]
[1643386663663,10.48312,91.646,91.6,6.0]
[1643386663860,10.48312,91.646,91.6,19.58]
[1643386664862,10.48312,91.646,91.601,0.25]
[1643386665063,43.83691723,91.658,91.6,19.58]
[1643386665364,10.48312,91.657,91.6,19.58]
[1643386665963,10.48312,91.657,91.601,0.25]
[1643386666165,43.83691723,91.658,91.6,19.58]
[1643386666365,0.25,91.657,91.6,19.58]
[1643386666567,0.25,91.657,91.6,13.58]
[1643386667567,16.384,91.67,91.615,0.31099113]
[1643386667767,3.01833847,91.697,91.62,13.58]
[1643386667970,54.599,91.71,91.62,13.58]
[1643386667971,6.0,91.66,91.62,13.58]
[1643386668166,6.0,91.687,91.621,0.25]
[1643386668568,38.00586209,91.689,91.621,0.25]
[1643386669171,6.0,91.679,91.621,0.25]
[1643386670170,6.0,91.679,91.62,13.58]
[1643386670371,6.0,91.679,91.621,0.25]
[1643386670774,6.0,91.679,91.62,13.58]
[1643386671375,38.00586209,91.689,91.62,13.58]
[1643386672375,0.25,91.688,91.62,13.58]
[1643386672773,38.00586209,91.689,91.62,13.58]
[1643386673175,0.25,91.688,91.62,13.58]
[1643386673577,38.00586209,91.689,91.62,13.58]
[1643386674178,0.25,91.688,91.62,13.58]
[1643386674481,0.25,91.688,91.621,0.25]
[1643386674679,38.00586209,91.689,91.621,0.25]
[1643386675482,38.00586209,91.689,91.63,6.0]
[1643386675681,38.00586209,91.689,91.64,13.58]
[1643386676285,38.00586209,91.689,91.641,0.25]
[1643386676683,38.00586209,91.689,91.64,13.58]
[1643386679898,0.25,91.688,91.64,13.58]
[1643386680811,6.29526786,91.688,91.64,13.58]
[1643386681012,6.04526786,91.688,91.64,13.58]
[1643386681213,3.02692939,91.687,91.641,0.25]
[1643386681410,38.00586209,91.689,91.641,0.25]
[1643386682014,38.00586209,91.689,91.64,13.58]
[1643386682416,70.0,91.687,91.56,54.596]
[1643386682615,3.01833847,91.676,91.517,15.9673]
[1643386682814,3.01833847,91.666,91.59,13.58]
[1643386683014,3.01833847,91.666,91.58,13.58]
[1643386683015,9.01833847,91.666,91.58,13.58]
[1643386683214,3.01833847,91.666,91.59,13.58]
[1643386683416,3.02666024,91.665,91.6,13.58]
[1643386683616,48.81776651,91.675,91.6,13.58]
[1643386683819,13.76035534,91.674,91.6,13.58]
[1643386684020,10.73312,91.674,91.6,13.58]
[1643386684218,3.02709969,91.673,91.6,13.58]
[1643386684422,0.25,91.672,91.6,13.58]
[1643386684622,10.48312,91.674,91.6,13.58]
[1643386684927,10.48312,91.674,91.601,2.19757316]
[1643386685123,10.48312,91.674,91.611,6.0]
[1643386685321,10.48312,91.674,91.62,13.58]
[1643386685519,10.48312,91.674,91.63,6.0]
[1643386685720,3.01833847,91.708,91.64,13.58]
[1643386685919,44.38837012,91.707,91.641,0.25]
[1643386686119,3.01833847,91.717,91.641,2.44148375]
[1643386686322,3.01833847,91.727,91.65,6.0]
[1643386686519,84.77857538,91.747,91.65,6.0]
[1643386686520,3.01833847,91.736,91.651,6.0]
[1643386686720,84.77857538,91.747,91.667,0.31550877]
[1643386686919,84.77857538,91.747,91.68,13.58]
[1643386687120,84.77857538,91.747,91.69,175.7]
[1643386687320,44.89686249,91.754,91.7,13.58]
[1643386687523,3.01833847,91.785,91.7,13.58]
[1643386687725,3.01833847,91.785,91.726,0.31343558]
[1643386687926,3.01833847,91.818,91.74,13.58]
[1643386688125,3.01833847,91.818,91.75,6.0]
[1643386688327,3.0146503,91.825,91.76,13.58]
[1643386688626,3.0146503,91.825,91.77,6.0]
[1643386688828,3.01833847,91.838,91.78,13.58]
[1643386689027,3.01833847,91.84,91.78,13.58]
[1643386689226,3.01833847,91.842,91.78,13.58]
[1643386689428,3.01833847,91.829,91.78,13.58]
[1643386689626,3.01833847,91.835,91.78,13.58]
[1643386689828,3.01833847,91.832,91.781,0.25]
[1643386690028,42.80108222,91.835,91.78,13.58]
[1643386690628,42.80108222,91.835,91.79,13.58]
[1643386690828,3.20669142,91.834,91.79,13.58]
[1643386691028,0.25,91.834,91.79,13.58]
[1643386691428,0.25,91.854,91.79,13.58]
[1643386691628,16.35,91.85,91.79,13.58]
[1643386691828,48.47130632,91.849,91.77,13.58]
[1643386692032,6.0,91.839,91.77,13.58]
[1643386692331,3.25054859,91.838,91.77,13.58]
[1643386692629,3.00054859,91.837,91.77,13.58]
[1643386692830,3.20669142,91.838,91.77,13.58]
[1643386692831,16.355,91.82,91.77,13.58]
[1643386693134,46.27048664,91.819,91.77,13.58]
[1643386693328,46.27048664,91.819,91.71,169.7]
[1643386693629,6.0,91.809,91.721,0.25]
[1643386693828,0.25,91.808,91.721,0.25]
[1643386694030,16.359,91.8,91.721,0.25]
[1643386694228,0.25,91.799,91.72,13.58]
[1643386694431,46.35963839,91.799,91.72,13.58]
[1643386694628,46.35963839,91.799,91.72,14.4470864]
[1643386695127,46.35963839,91.799,91.72,13.58]
[1643386696129,6.0,91.789,91.646,11.22036822]
[1643386696331,38.71414777,91.759,91.647,10.47497]
[1643386696528,38.71414777,91.759,91.66,13.58]
[1643386696731,38.71414777,91.759,91.661,4.4823813]
[1643386696930,16.526,91.815,91.66,13.58]
[1643386696931,3.01833847,91.804,91.662,70.0]
[1643386697130,109.9,91.856,91.669,0.30968352]
[1643386697331,15.9423,91.871,91.708,0.3154694]
[1643386697332,54.515,91.85,91.708,0.3154694]
[1643386697528,4.52750771,91.887,91.708,0.3154694]
[1643386697529,4.52750771,91.887,91.735,0.3206024]
[1643386697728,4.52750771,91.899,91.771,0.30759417]
[1643386697934,4.52750771,91.899,91.74,183.28]
[1643386697935,4.52750771,91.927,91.78,13.58]
[1643386698130,4.32750771,91.927,91.79,6.0]
[1643386698330,507.54584618,91.979,91.79,6.0]
[1643386698331,162.70326735,91.979,91.924,21.71076538]
[1643386698529,7.54584618,92.094,91.966,0.31728788]
[1643386698733,2.30394877,92.121,91.98,183.28]
[1643386699030,2.30394877,92.121,92.07,169.7]
[1643386699231,2.30394877,92.121,92.11,169.7]
[1643386699433,241.23305521,92.125,92.11,68.28]
[1643386699630,4.43048838,92.267,92.11,68.28]
[1643386699833,10.52616865,92.239,92.13,169.7]
[1643386700033,10.52616865,92.239,92.12,169.7]
[1643386700034,37.37083735,92.238,92.12,169.7]
[1643386700234,10.44292,92.237,92.111,0.25]
[1643386700439,16.284,92.23,92.121,0.25]
[1643386700633,10.40312,92.229,92.121,0.25]
[1643386701033,10.40312,92.229,92.16,169.7]
[1643386701236,37.37083735,92.238,92.17,183.28]
[1643386701432,37.37083735,92.238,92.18,13.58]
[1643386701632,37.37083735,92.238,92.19,19.58]
[1643386701833,0.04304865,92.239,92.2,128.17]
[1643386702031,0.04304865,92.239,92.14,6.0]
[1643386702233,0.04304865,92.239,92.15,13.58]
[1643386702433,0.04304865,92.239,92.16,13.58]
[1643386702634,16.282,92.23,92.15,13.58]
[1643386702936,44.23573751,92.229,92.16,13.58]
[1643386703133,44.23573751,92.229,92.17,19.58]
[1643386703338,44.23573751,92.229,92.18,13.58]
[1643386703535,44.23573751,92.229,92.19,6.0]
[1643386703737,44.23573751,92.229,92.2,13.58]
[1643386703933,44.23573751,92.229,92.093,5.0]
[1643386704334,44.23573751,92.229,92.118,16.06451612]
[1643386704536,44.23573751,92.229,92.128,6.0]
[1643386704939,44.23573751,92.229,92.13,6.0]
[1643386705139,44.23573751,92.229,92.133,5.0]
[1643386705341,44.23573751,92.229,92.131,16.06451612]
[1643386705542,44.23573751,92.229,92.131,26.74202776]
[1643386705738,44.23573751,92.229,92.134,16.06451612]
[1643386706139,44.23573751,92.229,92.135,10.67751164]
[1643386706373,44.23573751,92.229,92.15,13.58]
[1643386706540,0.04304865,92.239,92.183,0.30264742]
[1643386706739,16.264,92.33,92.19,29.844]
[1643386706942,54.211,92.36,92.193,5.0]
[1643386707140,54.211,92.36,92.203,6.0]
[1643386707343,33.00137836,92.286,92.21,13.58]
[1643386707639,41.66669498,92.285,92.22,6.0]
[1643386707840,41.66669498,92.285,92.23,13.58]
[1643386708141,41.66669498,92.285,92.184,17.75812723]
[1643386708339,41.66669498,92.285,92.2,13.58]
[1643386708541,41.66669498,92.285,92.21,13.58]
[1643386708742,41.66669498,92.285,92.22,13.58]
[1643386709139,41.66669498,92.285,92.221,10.40977]
[1643386709639,41.66669498,92.285,92.222,19.59257168]
[1643386709840,41.66669498,92.285,92.231,6.0]
[1643386710041,41.66669498,92.285,92.222,19.59257168]
[1643386710042,41.66669498,92.285,92.24,13.58]
[1643386710242,41.66669498,92.285,92.242,10.4074]
[1643386710440,41.66669498,92.285,92.222,19.59257168]
[1643386710651,41.66669498,92.285,92.23,13.58]
[1643386710849,41.66669498,92.285,92.223,10.40955]
[1643386711049,33.00137836,92.286,92.233,6.0]
[1643386711248,33.00137836,92.286,92.234,10.4083]
[1643386711451,33.00137836,92.286,92.241,6.0]
[1643386711650,33.00137836,92.286,92.25,29.836]
[1643386711850,33.00137836,92.286,92.26,13.58]
[1643386712049,33.00137836,92.286,92.26,19.58]
[1643386712249,33.00137836,92.286,92.261,43.53256554]
[1643386712654,33.00137836,92.286,92.261,10.65526]
[1643386712851,33.00137836,92.286,92.261,10.40526]
[1643386713055,33.00137836,92.286,92.26,13.58]
[1643386713455,0.1,92.285,92.26,13.58]
[1643386713972,0.1,92.285,92.27,6.0]
[1643386714175,0.1,92.285,92.271,10.40413]
[1643386714672,0.1,92.285,92.203,5.0]
[1643386714673,0.1,92.285,92.153,5.0]
[1643386714873,0.1,92.285,92.2,13.58]
[1643386715175,0.1,92.285,92.202,10.41192]
[1643386715473,37.90901868,92.285,92.21,16.266]
[1643386715674,0.1,92.284,92.22,13.58]
[1643386716075,0.1,92.284,92.095,16.0742]
[1643386716277,0.1,92.284,92.11,169.7]
[1643386716476,6.0,92.275,92.12,13.58]
[1643386716676,16.278,92.25,92.13,13.58]
[1643386716878,0.1,92.249,92.13,13.58]
[1643386717078,0.1,92.263,92.131,16.38371132]
[1643386717276,0.1,92.263,92.14,169.7]
[1643386717476,0.1,92.263,92.15,13.58]
[1643386717878,0.1,92.263,92.16,16.274]
[1643386718078,0.1,92.263,92.17,13.58]
[1643386718277,0.35,92.263,92.17,13.58]
[1643386718480,0.35,92.263,92.15,13.58]
[1643386718678,0.35,92.263,92.073,4.37]
[1643386718881,0.35,92.263,92.1,13.58]
[1643386718882,6.0,92.254,92.1,13.58]
[1643386719079,16.286,92.21,92.1,29.864]
[1643386719277,46.86476584,92.209,92.101,2.19142679]
[1643386719479,0.1,92.208,92.101,2.19142679]
[1643386720080,16.287,92.2,92.086,2.19142679]
[1643386720279,0.1,92.199,92.101,2.19142679]
[1643386720682,0.35,92.199,92.101,2.19142679]
[1643386720983,16.289,92.19,92.081,2.19142679]
[1643386721185,36.85128229,92.189,92.081,2.19142679]
[1643386721387,36.85128229,92.189,92.08,13.58]
[1643386721586,0.25,92.188,92.06,13.58]
[1643386721784,0.25,92.188,92.055,2.19142679]
[1643386721988,0.25,92.188,91.98,169.7]
[1643386721989,16.299,92.13,92.034,2.19142679]
[1643386722185,54.335,92.15,92.043,10.4299]
[1643386722384,37.99411993,92.149,92.023,2.19142679]
[1643386722586,6.0,92.139,91.99,13.58]
[1643386722791,0.25,92.138,92.007,2.19142679]
[1643386722988,16.31,92.07,91.983,2.19142679]
[1643386723386,45.18204359,92.069,91.97,2.19142679]
[1643386723590,45.18204359,92.069,91.97,12.62960679]
[1643386723787,45.18204359,92.069,91.97,2.19142679]
[1643386723988,45.18204359,92.069,91.96,13.58]
[1643386723989,45.18204359,92.069,91.971,2.19142679]
[1643386724387,0.25,92.068,91.971,2.19142679]
[1643386724587,45.18204359,92.069,91.971,2.19142679]
[1643386724786,0.25,92.068,91.96,13.58]
[1643386725186,45.18204359,92.069,91.96,29.889]
[1643386725387,0.25,92.068,91.961,2.19967808]
[1643386726192,0.25,92.068,91.96,13.58]
[1643386726393,0.25,92.068,91.96,15.77967808]
[1643386726591,0.25,92.068,91.96,2.19967808]
[1643386726790,0.25,92.068,91.93,13.58]
[1643386726791,16.312,92.06,91.937,2.19967808]
[1643386726989,16.312,92.06,91.92,13.58]
[1643386727190,6.0,92.05,91.92,13.58]
[1643386727391,35.71828326,92.049,91.921,2.19967808]
[1643386728492,16.32,92.02,91.931,6.0]
[1643386728696,43.52951862,92.019,91.921,2.19967808]
[1643386728893,43.77951862,92.019,91.921,2.19967808]
[1643386729093,43.52951862,92.019,91.921,2.19967808]
[1643386729799,0.25,92.018,91.895,2.19967808]
[1643386730201,6.0,92.009,91.895,2.19967808]
[1643386730400,0.25,92.008,91.884,2.19967808]
[1643386730901,0.25,92.008,91.892,112.09967808]
[1643386731100,85.4962077,92.252,91.902,6.0]
[1643386731304,169.7,92.14,91.902,6.0]
[1643386731502,13.58,92.09,91.903,22.38371132]
[1643386731704,13.58,92.09,91.903,24.5833894]
[1643386731908,13.58,92.09,91.91,13.58]
[1643386732104,39.80014445,92.053,91.92,6.0]
[1643386732305,39.80014445,92.053,91.93,13.58]
[1643386732504,39.80014445,92.053,91.94,22.313]
[1643386732728,39.80014445,92.053,91.94,35.893]
[1643386732924,39.80014445,92.053,91.941,2.44967808]
[1643386733124,39.80014445,92.053,91.951,6.0]
[1643386733324,39.80014445,92.053,91.952,0.25]
[1643386733725,0.30365586,92.144,91.952,0.25]
[1643386733931,12.07335389,92.265,92.124,22.70071518]
[1643386734125,0.67882641,92.228,92.171,11.34147835]
[1643386734327,22.557,92.324,92.18,13.58]
[1643386734528,22.557,92.324,92.19,6.0]
[1643386734727,39.79697703,92.327,92.2,13.58]
[1643386734926,24.9673,92.455,92.246,0.30254432]
[1643386735126,24.9673,92.455,92.26,13.58]
[1643386735327,24.9673,92.455,92.261,0.25]
[1643386735525,24.9673,92.455,92.26,13.58]
[1643386735927,39.33094385,92.342,92.26,13.58]
[1643386736327,39.33094385,92.342,92.27,175.7]
[1643386736531,39.33094385,92.342,92.28,13.58]
[1643386737932,16.26,92.4,92.28,13.58]
[1643386738134,0.0092,92.343,92.319,0.31093611]
[1643386738331,0.0092,92.343,92.33,183.28]
[1643386738533,0.0092,92.343,92.34,6.0]
[1643386738735,0.0092,92.343,92.33,183.28]
[1643386738931,0.0092,92.343,92.331,109.9]
[1643386739331,0.0092,92.343,92.341,6.0]
[1643386739532,0.0092,92.343,92.342,109.9]
[1643386739833,0.1,92.476,92.342,112.34364934]
[1643386740032,0.1,92.476,92.38,169.7]
[1643386740233,0.1,92.476,92.39,13.58]
[1643386740435,0.1,92.476,92.39,19.58]
[1643386740846,499.6,92.481,92.391,0.25]
[1643386741042,499.6,92.481,92.391,2.44364934]
[1643386741243,499.6,92.481,92.392,2.19364934]
[1643386741541,499.6,92.481,92.39,183.28]
[1643386741745,47.71113523,92.48,92.39,183.28]
[1643386741944,47.71113523,92.48,92.4,6.0]
[1643386742141,47.71113523,92.48,92.41,13.58]
[1643386742341,47.71113523,92.48,92.41,29.812]
[1643386742644,499.6,92.481,92.41,29.812]
[1643386742842,499.6,92.481,92.42,6.0]
[1643386743042,499.6,92.481,92.384,2.19364934]
[1643386743241,499.6,92.481,92.4,29.814]
[1643386743441,499.6,92.481,92.41,169.7]
[1643386743643,38.67049685,92.48,92.42,19.58]
[1643386743840,38.67049685,92.48,92.42,15.58]
[1643386744042,38.67049685,92.48,92.42,13.58]
[1643386744245,38.67049685,92.48,92.42,29.81]
[1643386744642,0.25,92.479,92.42,29.81]
[1643386744843,0.25,92.479,92.41,169.7]
[1643386745047,0.25,92.479,92.42,13.58]
[1643386745444,38.67049685,92.48,92.42,13.58]
[1643386745645,38.67049685,92.48,92.38,54.111]
[1643386745846,6.0,92.47,92.39,13.58]
[1643386746045,6.0,92.471,92.4,13.58]
[1643386746245,499.6,92.481,92.41,13.58]
[1643386746446,499.6,92.481,92.42,13.58]
[1643386746748,499.6,92.481,92.293,97.80801373]
[1643386746749,499.6,92.481,92.37,16.239]
[1643386747046,45.07237656,92.48,92.38,13.58]
[1643386747247,45.07237656,92.48,92.39,13.58]
[1643386747646,16.245,92.46,92.39,13.58]
[1643386747846,48.99891127,92.459,92.39,13.58]
[1643386749950,499.6,92.481,92.304,2.19364934]
[1643386749951,397.26,92.481,92.401,109.9]
[1643386750148,397.26,92.481,92.41,183.28]
[1643386750751,397.26,92.481,92.411,2.19364934]
[1643386750951,397.26,92.481,92.36,169.7]
[1643386750952,42.11615822,92.48,92.36,169.7]
[1643386751148,42.11615822,92.48,92.375,0.00364934]
[1643386751353,42.11615822,92.48,92.266,16.4997]
[1643386751552,6.0,92.47,92.266,16.4997]
[1643386751852,0.25,92.469,92.28,13.58]
[1643386752049,42.11615822,92.48,92.326,0.30016751]
[1643386752248,397.26,92.481,92.381,109.9]
[1643386752452,397.26,92.481,92.398,0.30083858]
[1643386752649,397.26,92.481,92.41,13.58]
[1643386753151,397.26,92.481,92.39,13.58]
[1643386753350,39.00579388,92.48,92.384,6.0]
[1643386753550,39.00579388,92.48,92.39,6.0]
[1643386754151,39.00579388,92.48,92.4,13.58]
[1643386754354,39.00579388,92.48,92.39,13.58]
[1643386754555,39.00579388,92.48,92.39,29.815]
[1643386754751,39.00579388,92.48,92.36,13.58]
[1643386754952,6.0,92.47,92.34,13.58]
[1643386755151,6.0,92.47,92.28,169.7]
[1643386755152,6.0,92.47,92.32,13.58]
[1643386755351,6.0,92.47,92.284,12.76949984]
[1643386755555,0.31256481,92.458,92.282,2.18763324]
[1643386755753,16.258,92.41,92.27,13.58]
[1643386755954,39.99732351,92.409,92.26,13.58]
[1643386756152,6.0,92.399,92.26,13.58]
[1643386756352,0.25,92.398,92.26,13.58]
[1643386757155,47.75358293,92.369,92.26,13.58]
[1643386757355,47.75358293,92.369,92.23,13.58]
[1643386757356,0.25,92.368,92.23,13.58]
[1643386757556,6.0,92.359,92.24,6.0]
[1643386757959,0.25,92.358,92.23,13.58]
[1643386758360,0.25,92.358,92.231,2.20469447]
[1643386758560,47.75358293,92.369,92.24,16.262]
[1643386758761,47.75358293,92.369,92.25,123.48]
[1643386758998,47.75358293,92.369,92.26,6.0]
[1643386759398,47.75358293,92.369,92.261,0.25]
[1643386759797,0.25,92.368,92.251,6.0]
[1643386760200,0.25,92.368,92.252,109.9]
[1643386760602,0.25,92.368,92.262,6.0]
[1643386760901,47.75358293,92.369,92.263,109.9]
[1643386761102,47.75358293,92.369,92.274,109.9]
[1643386761299,47.9068,92.409,92.28,13.58]
[1643386761503,77.2469,92.458,92.302,0.30587368]
[1643386761705,47.3898,92.457,92.3,13.58]
[1643386761900,47.3898,92.457,92.301,0.25]
[1643386762102,47.3898,92.457,92.303,6.0]
[1643386762299,43.02422124,92.428,92.304,0.25]
[1643386762499,43.02422124,92.428,92.301,0.25]
[1643386762699,43.02422124,92.428,92.295,6.0]
[1643386762901,16.259,92.39,92.295,6.0]
[1643386763103,46.09105964,92.389,92.262,1.36883083]
[1643386763300,0.25,92.388,92.256,381.45814848]
[1643386763499,6.0,92.379,92.256,381.45814848]
[1643386763701,6.0,92.379,92.239,1.36883083]
[1643386763901,0.25,92.378,92.232,1.36883083]
[1643386764301,16.262,92.37,92.24,16.262]
[1643386764500,40.27991123,92.369,92.232,1.36883083]
[1643386764704,6.0,92.36,92.229,1.36883083]
[1643386765000,6.25,92.359,92.235,1.36883083]
[1643386765300,6.25,92.359,92.229,1.36883083]
[1643386765501,16.267,92.34,92.225,1.36883083]
[1643386765704,42.77172572,92.339,92.207,553.30840841]
[1643386765901,6.0,92.33,92.207,19.40352617]
[1643386766101,6.0,92.33,92.12,13.58]
[1643386766102,6.0,92.329,92.121,7.55253379]
[1643386766303,79.1944,92.328,92.121,4.48773679]
[1643386766502,79.4444,92.328,92.121,17.00092996]
[1643386766701,16.28,92.3,92.14,16.279]
[1643386766906,0.25,92.299,92.141,40.75986805]
[1643386767107,6.0,92.29,92.142,4.48773679]
[1643386767307,0.25,92.289,92.141,40.75986805]
[1643386767505,0.25,92.289,92.113,17.00092996]
[1643386767707,16.281,92.28,92.114,4.47764619]
[1643386767905,0.25,92.279,92.101,4.47764619]
[1643386768107,6.0,92.27,92.081,4.47764619]
[1643386768306,0.25,92.269,92.081,4.47764619]
[1643386768509,0.25,92.269,92.082,38.77511539]
[1643386768707,0.25,92.269,92.083,4.47764619]
[1643386768908,16.288,92.23,92.083,114.37764619]
[1643386769109,6.0,92.22,92.083,114.37764619]
[1643386769314,0.25,92.219,92.084,4.47764619]
[1643386769714,0.25,92.219,92.082,38.77511539]
[1643386769715,0.25,92.219,92.083,4.47764619]
[1643386770015,0.25,92.219,92.121,41.12396882]
[1643386770439,6.0,92.255,92.121,41.12396882]
[1643386770839,0.25,92.254,92.121,41.12396882]
[1643386771637,16.287,92.22,92.121,41.12396882]
[1643386771839,0.25,92.219,92.121,41.12396882]
[1643386772038,6.0,92.21,92.121,41.12396882]
[1643386772240,6.0,92.21,92.06,13.58]
[1643386772438,46.5503,92.229,92.07,6.0]
[1643386772641,46.5503,92.229,92.071,109.9]
[1643386772841,22.552,92.265,92.071,155.22860385]
[1643386773140,22.552,92.265,92.117,0.31877699]
[1643386773339,22.552,92.265,92.13,13.58]
[1643386773543,22.552,92.265,92.14,19.58]
[1643386773742,22.552,92.265,92.15,13.58]
[1643386774041,22.552,92.265,92.16,6.0]
[1643386774244,22.552,92.265,92.172,109.50619261]
[1643386774642,22.552,92.265,92.183,109.50619261]
[1643386774844,22.552,92.265,92.184,0.25]
[1643386775044,22.552,92.265,92.194,35.22437283]
[1643386775245,22.552,92.265,92.2,16.269]
[1643386775446,22.552,92.265,92.204,6.0]
[1643386775643,22.552,92.265,92.211,37.25605133]
[1643386775845,1.36009343,92.265,92.212,0.25]
[1643386776043,150.1978,92.359,92.221,6.0]
[1643386776245,16.27,92.32,92.211,37.25605133]
[1643386776844,0.25,92.319,92.211,37.25605133]